bitfinex/quotes_ETHUSD_20241116
["timestamp","ask_amount","ask_price","bid_price","bid_amount"]
[1731771056127,0.55,3146.8,3145.6,0.3558388]
[1731771056328,0.55,3146.8,3146.2,3.17836]
[1731771056529,3.17784,3146.8,3146.2,3.17836]
[1731771056831,0.55,3146.8,3146.2,3.17836]
[1731771057584,0.55,3146.8,3146.1,3.0]
[1731771057906,3.72783,3146.8,3146.1,6.17848]
[1731771058168,0.01,3147.8,3146.4,3.17814]
[1731771058169,3.17748,3147.2,3146.4,3.17814]
[1731771058382,3.17689,3147.8,3146.1,3.0]
[1731771058383,3.17805,3146.6,3146.1,3.0]
[1731771058520,3.17805,3146.6,3145.3,3.17934]
[1731771058521,3.17805,3146.6,3145.9,6.17865]
[1731771058724,3.17805,3146.6,3146.0,0.617865]
[1731771058923,3.72754,3147.1,3146.1,3.17853]
[1731771059158,3.72754,3147.1,3146.3,3.17832]
[1731771059379,3.72754,3147.1,3146.4,3.17816]
[1731771059583,3.17773,3146.9,3146.2,3.17838]
[1731771059777,3.17773,3146.9,3146.1,3.0]
[1731771059778,3.17796,3146.7,3146.1,3.0]
[1731771059985,3.17796,3146.7,3146.1,7.114226]
[1731771060187,0.55,3146.8,3146.2,3.24198036]
[1731771060370,0.55,3146.8,3146.3,3.17832]
[1731771060574,0.55,3146.8,3146.2,0.06356036]
[1731771060575,3.17753,3147.1,3146.4,3.24171031]
[1731771060880,0.55,3146.9,3146.1,4.114256]
[1731771061042,3.17793,3146.7,3146.2,3.0]
[1731771061491,3.1776,3147.1,3146.4,3.17813]
[1731771061660,3.17683,3147.8,3147.0,3.17762]
[1731771061991,3.17714,3147.5,3146.9,3.1777]
[1731771062282,3.17697,3147.7,3147.0,3.17762]
[1731771062588,0.01,3148.7,3146.7,3.17788]
[1731771062589,3.17678,3147.9,3147.2,3.17736]
[1731771062749,3.17659,3148.1,3147.4,3.1772]
[1731771062945,3.17659,3148.1,3147.5,3.24063828]
[1731771063326,3.17591,3148.7,3147.8,3.17672]
[1731771063496,3.17601,3148.6,3147.8,3.17672]
[1731771064167,3.17622,3148.4,3147.8,3.17672]
[1731771064498,0.64220008,3149.4,3147.6,3.50106383]
[1731771064499,3.17612,3148.5,3147.6,3.50105383]
[1731771064660,3.17612,3148.5,3147.7,3.17684]
[1731771064661,3.17632,3148.3,3147.7,3.17684]
[1731771065226,3.17632,3148.3,3147.6,3.50105383]
[1731771065227,3.17612,3148.5,3147.8,3.84453938]
[1731771065348,3.17634,3148.3,3147.6,0.32406383]
[1731771065692,3.17634,3148.3,3147.1,3.495282]
[1731771065693,3.17679,3147.9,3147.1,3.495192]
[1731771065842,3.17679,3147.9,3147.3,3.17729]
[1731771066047,3.17679,3147.9,3147.4,0.06353787]
[1731771066448,3.17627,3148.4,3147.7,3.17691]
[1731771066690,3.55,3148.8,3147.1,3.495262]
[1731771066691,3.17701,3147.7,3147.1,3.495262]
[1731771067141,3.17637,3148.3,3146.7,3.17789]
[1731771067142,3.17716,3147.5,3146.7,3.17789]
[1731771067435,3.17735,3147.3,3146.7,3.17789]
[1731771067914,6.17621,3148.5,3146.8,3.17776]
[1731771068115,3.1771,3147.6,3147.0,3.17754]
[1731771068427,3.177,3147.7,3147.0,3.17754]
[1731771068631,3.17687,3147.8,3147.0,3.17754]
[1731771068934,3.17704,3147.6,3147.0,3.17754]
[1731771069140,3.0,3148.5,3146.9,0.317776]
[1731771069141,3.17665,3148.0,3147.1,0.41307355]
[1731771069431,3.17665,3148.0,3147.1,3.1775]
[1731771069632,3.17673,3147.9,3147.3,3.17725]
[1731771069944,3.17665,3148.0,3147.3,3.17725]
[1731771070412,3.17665,3148.0,3147.1,3.17751]
[1731771070413,3.17712,3147.6,3146.4,6.89945302]
[1731771070741,3.17684,3147.8,3146.9,3.17765]
[1731771070936,3.17692,3147.7,3147.1,3.17752]
[1731771071141,3.17692,3147.7,3146.5,0.6909453]
[1731771071142,3.17721,3147.5,3146.8,3.17777]
[1731771071297,3.17721,3147.5,3146.8,3.813338]
[1731771071650,3.17692,3147.7,3146.8,0.635568]
[1731771071926,3.17692,3147.7,3147.0,3.17762]
[1731771072492,3.17725,3147.4,3146.8,0.635568]
[1731771072733,3.17725,3147.4,3146.5,3.17811]
[1731771072890,3.1768,3147.9,3145.9,3.80685923]
[1731771072891,3.17752,3147.1,3145.9,3.80685923]
[1731771073092,3.17811,3146.6,3145.9,3.17871]
[1731771073300,3.17765,3147.0,3146.1,3.17847]
[1731771073491,3.17765,3147.0,3146.2,0.32420305]
[1731771073492,3.17784,3146.8,3146.2,0.32420305]
[1731771073695,3.17784,3146.8,3146.2,3.50262305]
[1731771073929,3.17765,3147.0,3146.3,3.17827]
[1731771074338,3.17765,3147.0,3146.4,3.24178607]
[1731771074491,3.17745,3147.2,3146.5,0.64200561]
[1731771074692,3.17708,3147.6,3146.8,3.17782]
[1731771074933,0.55,3148.1,3146.5,0.64200561]
[1731771075138,3.17774,3146.9,3146.3,3.17828]
[1731771075729,3.17753,3147.1,3146.4,3.17822]
[1731771075934,3.17753,3147.1,3146.5,3.81377]
[1731771076096,3.17773,3146.9,3146.5,0.63565]
[1731771076305,3.17773,3146.9,3146.1,3.17846]
[1731771076521,3.72684,3147.8,3146.1,3.17846]
[1731771076522,3.17804,3146.6,3146.1,3.17846]
[1731771076689,3.17826,3146.4,3145.8,3.1788]
[1731771076894,3.17804,3146.6,3145.9,3.49653]
[1731771077623,3.17787,3146.8,3146.1,3.17847]
[1731771077929,3.17791,3146.8,3146.1,3.17847]
[1731771078133,3.17791,3146.8,3146.3,3.17832]
[1731771078383,3.17766,3147.0,3146.4,3.496062]
[1731771078499,3.17766,3147.0,3146.4,3.17823]
[1731771079236,3.17766,3147.0,3146.4,3.17814]
[1731771079455,3.17745,3147.2,3146.4,3.17814]
[1731771079739,3.17784,3146.8,3146.2,3.17839]
[1731771080099,3.17764,3147.0,3146.3,0.06355723]
[1731771080342,3.17731,3147.4,3146.7,3.17792]
[1731771080499,3.17756,3147.1,3146.5,3.17812]
[1731771080703,3.17756,3147.1,3146.6,3.495842]
[1731771081011,3.17764,3147.0,3146.6,0.317812]
[1731771081224,3.17792,3146.8,3146.2,3.17843]
[1731771081554,3.1785,3146.2,3145.8,0.6900153]
[1731771081835,3.17891,3145.8,3145.2,6.90073302]
[1731771082343,3.17861,3146.1,3145.5,3.17912]
[1731771082501,3.0,3147.0,3145.6,3.72129302]
[1731771082696,3.0,3147.0,3145.6,3.17896]
[1731771082697,3.17852,3146.2,3145.6,3.17896]
[1731771082916,3.17826,3146.4,3145.8,3.17875]
[1731771083210,3.17826,3146.4,3145.8,3.24231909]
[1731771083413,0.01,3147.5,3145.8,0.06356909]
[1731771083709,0.55,3147.3,3146.0,6.89985302]
[1731771083921,3.17779,3146.9,3146.2,3.17837]
[1731771084097,3.17798,3146.7,3146.2,1.01418348]
[1731771084296,3.17803,3146.6,3146.2,1.01418348]
[1731771084519,3.17798,3146.7,3146.2,1.01418348]
[1731771084725,3.17804,3146.6,3146.2,1.01418348]
[1731771084932,3.17791,3146.8,3146.2,1.01418348]
[1731771085138,3.17791,3146.8,3146.3,3.0]
[1731771085433,3.17791,3146.8,3146.4,0.71925835]
[1731771085836,3.92471549,3148.0,3146.7,3.0]
[1731771086084,3.1773,3147.4,3146.8,3.17776]
[1731771087179,0.55,3147.9,3146.5,3.0]
[1731771087335,3.17764,3147.0,3146.5,3.0]
[1731771087535,3.17764,3147.0,3146.5,3.99630076]
[1731771087761,3.17781,3146.9,3146.2,6.17843]
[1731771087973,3.17781,3146.9,3146.4,3.0]
[1731771088151,3.17734,3147.3,3146.4,3.72129302]
[1731771088351,3.17751,3147.2,3146.5,3.6241878]
[1731771088560,3.17751,3147.2,3146.5,3.17807]
[1731771088785,3.17751,3147.2,3146.6,6.17793]
[1731771089082,3.72651,3148.1,3146.9,3.17764]
[1731771089083,6.35417,3147.6,3146.9,3.17764]
[1731771089280,3.18605,3148.6,3146.9,3.17764]
[1731771089281,3.17698,3147.7,3147.1,3.17745]
[1731771089583,3.17684,3147.8,3147.0,3.0]
[1731771089756,3.17684,3147.8,3147.1,3.17745]
[1731771089933,3.17684,3147.8,3147.2,0.06354266]
[1731771090131,3.92548183,3148.4,3146.8,3.72129302]
[1731771090132,3.17735,3147.3,3146.8,3.0]
[1731771090572,3.17713,3147.5,3146.8,3.0]
[1731771090782,3.17727,3147.4,3146.8,3.617788]
[1731771090968,3.17727,3147.4,3146.8,3.0]
[1731771091283,3.17713,3147.5,3147.0,3.0]
[1731771091580,3.17722,3147.4,3146.8,3.0]
[1731771091735,3.17696,3147.7,3147.0,3.17756]
[1731771092083,3.17621,3148.4,3147.3,3.17725]
[1731771092242,3.17649,3148.2,3147.4,0.317725]
[1731771092573,3.17662,3148.0,3147.3,3.17725]
[1731771092776,3.17673,3147.9,3147.3,3.17725]
[1731771092982,3.17645,3148.2,3147.3,3.17725]
[1731771093281,3.17643,3148.2,3147.7,3.17692]
[1731771093459,6.35251,3148.4,3147.7,3.812305]
[1731771093665,3.17633,3148.3,3147.7,3.17692]
[1731771093876,3.17623,3148.4,3147.7,3.17692]
[1731771094070,3.17587,3148.8,3148.1,3.17644]
[1731771094239,3.17587,3148.8,3148.1,3.494084]
[1731771094584,3.92548183,3149.0,3148.5,3.17609]
[1731771094877,3.92548183,3149.0,3148.1,0.317644]
[1731771094878,3.92548183,3149.4,3148.4,3.72129302]
[1731771095087,3.92548183,3149.8,3148.5,3.3721293]
[1731771095397,3.1748,3149.8,3148.8,3.1758]
[1731771095679,3.17461,3150.0,3149.2,3.17534]
[1731771095977,3.17456,3150.1,3149.4,3.17516]
[1731771096162,3.17432,3150.3,3149.6,3.17496]
[1731771096346,3.17422,3150.4,3149.4,3.17516]
[1731771096347,3.17443,3150.2,3149.4,3.17516]
[1731771096554,3.17389,3150.8,3149.4,3.17516]
[1731771096555,3.17451,3150.1,3149.4,3.17516]
[1731771097342,3.93374428,3150.5,3149.1,3.0]
[1731771097343,3.17488,3149.8,3149.1,3.0]
[1731771097568,3.17501,3149.6,3149.1,3.0]
[1731771097952,3.17488,3149.8,3149.1,3.0]
[1731771098473,3.17438,3150.3,3149.1,3.0]
[1731771098474,3.17491,3149.7,3149.1,3.0]
[1731771099176,3.1747,3149.9,3149.1,3.0]
[1731771099380,3.17438,3150.3,3148.9,6.1757]
[1731771099381,3.17511,3149.5,3148.9,6.1757]
[1731771099601,3.17511,3149.5,3148.6,3.17601]
[1731771099602,3.17511,3149.5,3148.7,3.0]
[1731771099880,3.17572,3148.9,3148.2,3.17639]
[1731771100087,3.17562,3149.0,3148.4,3.1762]
[1731771100241,3.17562,3149.0,3148.1,3.22410582]
[1731771100442,3.17602,3148.6,3148.1,0.04761582]
[1731771101282,3.17587,3148.8,3148.1,0.11113915]
[1731771101487,3.17592,3148.7,3148.1,3.28764915]
[1731771101641,3.17592,3148.7,3148.1,3.22412582]
[1731771102063,3.17592,3148.7,3148.1,0.04761582]
[1731771102541,3.17592,3148.7,3148.1,3.04761582]
[1731771102741,3.17579,3148.9,3148.1,6.28764916]
[1731771103152,3.17582,3148.8,3148.1,6.28764916]
[1731771103438,3.17562,3149.0,3148.3,3.17629]
[1731771103654,3.17562,3149.0,3148.4,6.17619]
[1731771103890,3.17523,3149.4,3148.6,3.17594]
[1731771104040,3.17542,3149.2,3148.6,3.17594]
[1731771104244,3.17531,3149.3,3148.6,3.17594]
[1731771104541,3.17523,3149.4,3148.8,3.17574]
[1731771104752,3.175,3149.6,3148.6,3.23949204]
[1731771104962,3.175,3149.6,3149.0,3.0]
[1731771105202,3.17483,3149.8,3149.1,3.17551]
[1731771105347,3.17483,3149.8,3149.2,3.1754]
[1731771105548,3.17466,3150.0,3149.2,3.23890415]
[1731771105748,3.17466,3150.0,3149.3,3.17527]
[1731771106594,3.1751,3149.6,3148.9,3.0]
[1731771106760,3.17416,3150.5,3148.9,3.0]
[1731771106761,3.17497,3149.7,3148.9,3.0]
[1731771107083,3.17497,3149.7,3149.1,3.0]
[1731771107501,3.1745,3150.1,3149.2,3.17539]
[1731771107643,3.1745,3150.1,3149.4,3.17513]
[1731771108054,3.17467,3150.0,3149.4,3.17513]
[1731771109188,3.17467,3150.0,3149.4,3.17519]
[1731771109955,3.17422,3150.4,3149.7,3.17489]
[1731771110152,3.17402,3150.6,3149.9,3.17469]
[1731771110364,3.17402,3150.6,3149.8,3.17476]
[1731771110365,3.17421,3150.4,3149.8,3.17476]
[1731771111062,3.17421,3150.4,3149.7,3.17483]
[1731771111262,3.17421,3150.4,3149.7,0.68182872]
[1731771111485,3.17438,3150.3,3149.7,0.61833779]
[1731771111700,3.17421,3150.4,3149.6,3.17491]
[1731771111876,3.17421,3150.4,3148.5,0.78462816]
[1731771111877,3.17409,3150.5,3148.6,0.3179]
[1731771112215,3.17519,3149.5,3148.7,3.17591]
[1731771112406,3.17519,3149.5,3148.9,3.17568]
[1731771112758,0.55,3150.0,3148.8,0.349381]
[1731771112994,3.17519,3149.5,3148.9,3.17564]
[1731771113195,3.17507,3149.6,3149.0,3.17559]
[1731771113362,3.17507,3149.6,3149.0,3.5280921]
[1731771113563,3.17482,3149.8,3149.1,3.1755]
[1731771113768,3.17464,3150.0,3149.2,3.17534]
[1731771114089,3.17464,3150.0,3149.0,0.3525021]
[1731771114090,3.17491,3149.7,3149.1,6.17542]
[1731771114272,3.17496,3149.7,3149.1,0.67983164]
[1731771114860,3.17501,3149.6,3149.1,0.67983164]
[1731771115091,3.17512,3149.5,3149.1,0.67983164]
[1731771115302,3.17557,3149.1,3148.4,3.17613]
[1731771115604,3.17557,3149.1,3148.5,3.17611]
[1731771115762,3.17539,3149.3,3148.7,3.17588]
[1731771115995,3.1747,3149.9,3148.4,3.17612]
[1731771116196,3.17539,3149.3,3148.6,3.176]
[1731771116403,3.17547,3149.2,3148.6,3.176]
[1731771118194,3.17521,3149.4,3148.7,0.06351269]
[1731771118409,3.17521,3149.4,3148.8,3.49968127]
[1731771118826,3.17531,3149.3,3148.8,0.32395127]
[1731771119039,3.17504,3149.6,3149.0,3.1756]
[1731771119234,3.17504,3149.6,3148.8,0.32395127]
[1731771119235,3.17528,3149.4,3148.8,3.49970127]
[1731771119394,3.17542,3149.2,3148.8,0.32395127]
[1731771119798,3.17542,3149.2,3148.5,6.17604]
[1731771120213,3.17542,3149.2,3148.5,3.0]
[1731771120411,3.17567,3149.0,3148.5,3.0]
[1731771120647,3.17584,3148.8,3148.2,0.6897803]
[1731771120939,0.01,3149.5,3147.9,3.17666]
[1731771121147,0.01,3149.5,3147.7,3.17691]
[1731771121148,3.17611,3148.5,3147.8,3.1768]
[1731771121342,3.17595,3148.7,3148.2,3.17641]
[1731771121638,3.18512,3149.5,3148.3,0.06352134]
[1731771121805,3.17579,3148.9,3148.3,3.23983134]
[1731771122002,3.17594,3148.7,3148.1,3.17644]
[1731771122315,3.17594,3148.7,3147.9,0.635371]
[1731771122316,3.17607,3148.6,3147.9,3.17664]
[1731771122611,3.17575,3148.9,3148.0,3.8754646]
[1731771122827,3.17587,3148.8,3148.1,3.17651]
[1731771123037,3.17575,3148.9,3148.2,0.70519746]
[1731771123214,3.17594,3148.7,3148.2,3.88160746]
[1731771123431,3.17575,3148.9,3148.2,0.70519746]
[1731771123432,3.17601,3148.6,3148.2,0.70519746]
[1731771123747,3.17575,3148.9,3148.2,0.70519746]
[1731771124036,3.17554,3149.1,3148.4,3.17619]
[1731771124241,3.17554,3149.1,3148.6,3.176]
[1731771124454,0.01,3150.3,3148.5,3.0]
[1731771124455,6.35011,3149.6,3148.8,3.1758]
[1731771124664,3.17465,3150.0,3149.1,3.17549]
[1731771124665,3.17482,3149.8,3149.1,3.17549]
[1731771124949,3.17464,3150.0,3149.2,3.23887238]
[1731771125402,3.17481,3149.8,3149.2,3.23887238]
[1731771125601,3.17464,3150.0,3149.4,3.17517]
[1731771125816,3.17464,3150.0,3149.5,0.617517]
[1731771126027,3.17471,3149.9,3149.3,3.17524]
[1731771126440,3.17464,3150.0,3149.3,3.17524]
[1731771126641,3.17442,3150.2,3149.4,0.06349643]
[1731771126949,3.17442,3150.2,3149.4,3.17518]
[1731771127111,3.17442,3150.2,3148.9,0.31758]
[1731771127112,3.17486,3149.8,3149.3,3.0]
[1731771127657,3.17486,3149.8,3148.6,6.89729302]
[1731771127658,3.17561,3149.0,3148.3,3.17625]
[1731771127956,3.17542,3149.2,3148.4,0.317625]
[1731771128101,3.1753,3149.4,3148.7,3.17589]
[1731771128301,3.17541,3149.2,3148.5,3.17611]
[1731771128504,3.17527,3149.4,3148.5,3.17611]
[1731771128722,3.17527,3149.4,3148.8,3.17578]
[1731771129136,3.90886524,3150.9,3149.0,3.72129302]
[1731771129351,3.17403,3150.6,3149.7,3.17489]
[1731771129518,3.17428,3150.4,3149.7,3.23838044]
[1731771129847,3.17425,3150.4,3149.7,3.23838044]
[1731771130046,3.17407,3150.6,3149.8,3.17473]
[1731771130251,3.17382,3150.8,3150.0,3.17457]
[1731771130401,3.17382,3150.8,3149.9,3.55]
[1731771130402,3.17362,3151.0,3149.9,3.55]
[1731771130602,3.17371,3150.9,3150.3,3.17421]
[1731771131243,3.17352,3151.1,3150.4,3.17419]
[1731771131541,3.17333,3151.3,3150.7,3.17389]
[1731771131708,3.17311,3151.5,3150.8,3.17378]
[1731771132045,3.17311,3151.5,3150.6,3.17391]
[1731771132338,3.17341,3151.2,3150.6,3.17391]
[1731771132703,3.17309,3151.5,3149.8,0.55]
[1731771132906,3.17425,3150.4,3149.6,3.17495]
[1731771133142,3.17425,3150.4,3149.7,3.17489]
[1731771133550,3.17469,3150.0,3149.3,3.17527]
[1731771133704,3.17469,3150.0,3149.1,3.17544]
[1731771133904,3.1744,3150.2,3149.5,3.17504]
[1731771134109,3.01,3151.2,3149.5,3.17504]
[1731771134304,3.17423,3150.4,3149.5,3.17504]
[1731771134506,3.17481,3149.8,3149.2,3.492874]
[1731771134705,3.17379,3150.8,3148.4,0.327625]
[1731771134706,6.3484,3150.4,3148.6,3.17598]
[1731771134914,3.17501,3149.6,3148.9,3.1757]
[1731771135119,3.17522,3149.4,3149.0,0.06350111]
[1731771135328,3.17522,3149.4,3148.7,3.49349]
[1731771135833,3.17483,3149.8,3148.8,3.23925574]
[1731771136003,3.17483,3149.8,3149.1,3.17545]
[1731771136211,3.17462,3150.0,3149.3,3.1753]
[1731771136410,3.17441,3150.2,3149.3,3.1753]
[1731771136637,3.17441,3150.2,3149.5,3.17502]
[1731771136847,3.17384,3150.8,3149.5,3.17502]
[1731771137024,3.17451,3150.1,3149.3,3.1753]
[1731771137228,3.17451,3150.1,3149.4,3.17519]
[1731771137465,3.1742,3150.4,3149.5,3.23857223]
[1731771137620,3.1742,3150.4,3149.6,3.17492]
[1731771137823,3.1742,3150.4,3149.7,3.17486]
[1731771138143,3.17436,3150.3,3149.5,3.17508]
[1731771138327,3.17436,3150.3,3149.6,3.492508]
[1731771138528,3.17436,3150.3,3149.7,3.17489]
[1731771138730,3.17411,3150.5,3149.8,3.1748]
[1731771139034,3.17411,3150.5,3149.9,0.06348523]
[1731771139343,3.17411,3150.5,3149.9,3.23817523]
[1731771139665,3.17411,3150.5,3149.9,3.56199275]
[1731771139953,3.17411,3150.5,3149.9,0.38730275]
[1731771140260,3.17421,3150.4,3149.7,3.17484]
[1731771140635,3.17421,3150.4,3149.8,3.17478]
[1731771140827,3.17421,3150.4,3149.9,0.06348443]
[1731771141028,3.1743,3150.3,3149.6,6.492448]
[1731771141214,3.17452,3150.1,3149.7,0.9667518]
[1731771141418,3.1743,3150.3,3149.7,0.9667518]
[1731771141653,3.1743,3150.3,3149.7,3.17489]
[1731771141858,3.17412,3150.5,3149.8,3.23827528]
[1731771142072,3.17392,3150.7,3149.8,0.06348528]
[1731771142235,3.17392,3150.7,3150.0,3.1746]
[1731771142560,3.17392,3150.7,3150.1,0.06348042]
[1731771142747,3.17392,3150.7,3150.2,0.32380804]
[1731771142918,3.72129302,3151.6,3150.2,0.32380804]
[1731771142919,6.34708,3151.1,3150.3,3.1742]
[1731771143118,3.1737,3150.9,3150.2,3.49818804]
[1731771143361,3.1737,3150.9,3150.2,3.17438]
[1731771143527,3.17352,3151.1,3150.5,3.17408]
[1731771143728,3.17342,3151.2,3150.6,3.491398]
[1731771143947,3.17279,3151.8,3150.7,3.17388]
[1731771144161,3.17279,3151.8,3150.6,3.17399]
[1731771144162,7.10103957,3152.0,3150.8,0.06346635]
[1731771144331,3.17386,3150.8,3150.1,0.55]
[1731771144541,3.17386,3150.8,3150.2,3.0]
[1731771144745,3.1739,3150.7,3150.2,3.0]
[1731771144932,3.174,3150.6,3150.0,3.0]
[1731771145135,3.174,3150.6,3149.8,6.1747]
[1731771145335,3.174,3150.6,3149.9,3.17467]
[1731771145543,3.174,3150.6,3150.0,3.934937]
[1731771145844,3.17375,3150.9,3150.2,3.17438]
[1731771146283,3.17386,3150.8,3150.1,3.17441]
[1731771146452,3.17386,3150.8,3150.2,3.1743]
[1731771146785,3.17366,3151.0,3150.3,3.17428]
[1731771146995,3.17353,3151.1,3150.4,3.17416]
[1731771147283,3.17331,3151.3,3150.4,3.17418]
[1731771147449,3.17349,3151.1,3150.2,3.17437]
[1731771147650,3.17427,3150.4,3149.7,3.17488]
[1731771147961,3.17427,3150.4,3149.8,3.0]
[1731771148162,3.1743,3150.3,3149.8,3.0]
[1731771148363,3.17441,3150.2,3149.9,0.66507818]
[1731771148569,3.1746,3150.0,3149.9,0.04759018]
[1731771149909,3.17422,3150.4,3149.9,0.04759018]
[1731771150274,3.17385,3150.8,3149.9,0.04759018]
[1731771150572,3.17447,3150.2,3149.9,0.04759018]
[1731771150973,6.34849,3150.4,3149.9,0.04759018]
[1731771151191,3.17422,3150.4,3149.9,0.3698372]
[1731771151369,3.1746,3150.0,3149.9,0.04759018]
[1731771151875,6.1846,3150.0,3149.9,1.8e-07]
[1731771152708,6.7346,3150.0,3149.9,1.8e-07]
[1731771152911,6.7246,3150.0,3149.9,1.8e-07]
[1731771153810,3.1746,3150.0,3149.9,1.8e-07]
[1731771156396,6.1746,3150.0,3149.9,1.8e-07]
[1731771156813,11.31101498,3150.0,3149.9,1.8e-07]
[1731771156971,6.7346,3150.0,3149.9,1.8e-07]
[1731771157172,12.1404902,3150.0,3149.9,1.8e-07]
[1731771157407,6.7346,3150.0,3149.9,1.8e-07]
[1731771157832,6.1746,3150.0,3149.9,1.8e-07]
[1731771158128,10.7498313,3150.0,3149.9,1.8e-07]
[1731771158742,10.7598313,3150.0,3149.9,1.8e-07]
[1731771159090,10.7498313,3150.0,3149.9,1.8e-07]
[1731771159726,10.75870069,3150.0,3149.9,1.8e-07]
[1731771159886,10.74870069,3150.0,3149.9,1.8e-07]
[1731771160086,10.75870069,3150.0,3149.9,1.8e-07]
[1731771160337,6.1846,3150.0,3149.9,1.8e-07]
[1731771160631,6.1746,3150.0,3149.9,1.8e-07]
[1731771161194,6.1846,3150.0,3149.9,1.8e-07]
[1731771161900,10.75870069,3150.0,3149.9,1.8e-07]
[1731771162159,6.1746,3150.0,3149.9,1.8e-07]
[1731771163543,10.09625389,3150.0,3149.9,1.8e-07]
[1731771163709,6.1746,3150.0,3149.9,1.8e-07]
[1731771163911,3.1746,3150.0,3149.9,1.8e-07]
[1731771164943,3.17416,3150.5,3149.9,1.8e-07]
[1731771165120,3.17428,3150.4,3149.9,1.8e-07]
[1731771165620,3.17416,3150.5,3149.9,1.8e-07]
[1731771165916,3.17421,3150.4,3149.9,1.8e-07]
[1731771166614,3.92249089,3150.9,3149.9,1.8e-07]
[1731771166615,3.17396,3150.7,3149.9,0.38097736]
[1731771166815,3.17379,3150.8,3150.1,3.17447]
[1731771167261,3.1739,3150.7,3150.0,3.17452]
[1731771167707,3.17379,3150.8,3149.9,1.8e-07]
[1731771167907,3.17379,3150.8,3150.1,3.17442]
[1731771168352,3.1736,3151.0,3150.1,3.17442]
[1731771168519,3.1739,3150.7,3150.2,0.317442]
[1731771168854,3.1739,3150.7,3150.1,3.17442]
[1731771169574,3.17427,3150.4,3149.9,1.8e-07]
[1731771169916,3.17392,3150.7,3149.9,1.8e-07]
[1731771170112,3.17413,3150.5,3150.0,3.0]
[1731771170419,3.17428,3150.4,3149.9,1.8e-07]
[1731771170621,3.1745,3150.1,3149.9,1.8e-07]
[1731771170851,3.17432,3150.3,3149.9,1.8e-07]
[1731771171169,3.1746,3150.0,3149.9,1.8e-07]
[1731771172955,3.17456,3150.1,3149.9,1.8e-07]
[1731771173457,3.17413,3150.5,3149.9,1.8e-07]
[1731771173754,3.17392,3150.7,3149.9,1.8e-07]
[1731771173755,3.17392,3150.7,3150.0,3.49199302]
[1731771173925,3.17372,3150.9,3150.0,3.49199302]
[1731771174127,3.17372,3150.9,3150.3,3.17429]
[1731771174326,3.17352,3151.1,3150.4,0.06347749]
[1731771174532,3.17352,3151.1,3150.4,3.17412]
[1731771174753,3.17402,3150.6,3150.0,3.17456]
[1731771174959,3.17361,3151.0,3150.1,3.0]
[1731771175113,3.17361,3151.0,3150.4,3.17412]
[1731771175659,3.17339,3151.2,3150.4,3.17412]
[1731771175956,3.17338,3151.3,3150.6,3.17393]
[1731771176124,3.50408837,3151.4,3150.7,0.32374027]
[1731771176330,3.17342,3151.2,3150.7,3.17389]
[1731771177452,3.50408837,3151.4,3150.7,3.17389]
[1731771177628,0.33086837,3151.4,3150.3,3.0]
[1731771177961,0.33086837,3151.4,3150.7,3.17388]
[1731771177962,3.17329,3151.3,3150.7,3.17388]
[1731771178255,3.17329,3151.3,3150.8,0.317388]
[1731771178422,0.33086837,3151.4,3151.2,3.17336]
[1731771178624,0.33086837,3151.4,3150.8,0.317388]
[1731771178625,3.17265,3152.0,3151.4,6.17317]
[1731771178812,3.17265,3152.0,3151.4,6.23662688]
[1731771179311,3.17265,3152.0,3151.4,3.06345688]
[1731771179647,3.17265,3152.0,3151.4,3.68713157]
[1731771179823,3.17249,3152.1,3151.5,3.17308]
[1731771180064,3.17249,3152.1,3151.6,0.06345511]
[1731771180376,3.17229,3152.3,3151.6,0.68710862]
[1731771180588,3.17289,3151.7,3150.9,3.17369]
[1731771180737,3.17218,3152.4,3150.7,0.3179]
[1731771180738,3.17322,3151.4,3150.8,3.0]
[1731771181084,3.17322,3151.4,3150.8,6.17373]
[1731771181085,3.17327,3151.4,3150.8,6.17373]
[1731771181280,3.17302,3151.6,3150.9,4.108429]
[1731771181593,3.17298,3151.7,3151.1,3.17346]
[1731771181881,3.17299,3151.6,3151.0,3.17359]
[1731771182034,3.1731,3151.5,3150.9,4.108429]
[1731771182661,3.92812988,3152.4,3151.5,3.17299]
[1731771182844,3.17238,3152.2,3151.6,3.17292]
[1731771183062,3.17229,3152.3,3151.6,3.17292]
[1731771183981,3.17229,3152.3,3151.4,3.17318]
[1731771184285,3.17288,3151.8,3151.0,3.8843529]
[1731771184591,3.17302,3151.6,3150.9,3.0]
[1731771185079,3.1731,3151.5,3150.9,3.0]
[1731771185254,3.17308,3151.6,3150.9,6.17368]
[1731771185435,3.17311,3151.5,3150.9,6.17368]
[1731771185639,3.17282,3151.8,3151.1,3.17346]
[1731771185949,3.17282,3151.8,3151.2,3.23682264]
[1731771186158,3.17242,3152.2,3151.0,3.17359]
[1731771186349,3.17225,3152.4,3151.7,3.17287]
[1731771186554,3.17215,3152.5,3151.7,0.317287]
[1731771186794,3.1723,3152.3,3151.7,3.17288]
[1731771187080,3.17215,3152.5,3151.8,3.17278]
[1731771187665,3.17223,3152.4,3151.7,3.17288]
[1731771187862,3.17223,3152.4,3151.8,0.317288]
[1731771188052,3.17223,3152.4,3151.0,3.01]
[1731771188053,0.01,3152.0,3150.0,0.01]
[1731771188254,3.17322,3151.4,3150.6,3.17393]
[1731771188481,3.17309,3151.5,3149.9,1.8e-07]
[1731771188688,3.17417,3150.5,3149.9,1.8e-07]
[1731771188844,3.17319,3151.4,3149.9,1.8e-07]
[1731771188845,3.17441,3150.2,3149.9,1.8e-07]
[1731771189039,3.1744,3150.2,3149.9,1.8e-07]
[1731771189389,3.1743,3150.3,3149.4,3.17513]